fUSD/lending_fUSD_20240729
["ID","MTS","AMOUNT","RATE_DAILY","PERIOD"]
[333569829,1722250277435,-500.0,0.00010999,2]
[333569830,1722250277445,-500.0,0.00010999,2]
[333569831,1722250277454,-500.0,0.00010999,2]
[333569832,1722250277464,-500.0,0.00010999,2]
[333569833,1722250277474,-500.0,0.00010999,2]
[333569834,1722250277484,-500.0,0.00010999,2]
[333569835,1722250277494,-444.14565413,0.00010999,2]
[333569836,1722250277504,-657.99,0.00010999,2]
[333569837,1722250277514,-657.99,0.00010999,2]
[333569838,1722250277523,-657.99,0.00010999,2]
[333569839,1722250277533,-657.99,0.00010999,2]
[333569840,1722250277543,-657.99,0.00010999,2]
[333569841,1722250277553,-657.99,0.00010999,2]
[333569842,1722250277563,-657.99,0.00010999,2]
[333569843,1722250277573,-657.99,0.00010999,2]
[333569844,1722250277582,-657.99,0.00010999,2]
[333569845,1722250277592,-657.99,0.00010999,2]
[333569846,1722250277602,-658.02144833,0.00010999,2]
[333569847,1722250277613,-500.0,0.00010999,2]
[333569848,1722250277623,-500.0,0.00010999,2]
[333569849,1722250277633,-500.0,0.00010999,2]
[333569850,1722250277643,-577.34,0.00010999,2]
[333569851,1722250277653,-500.0,0.00010999,2]
[333569852,1722250277663,-577.34,0.00010999,2]
[333569853,1722250277672,-500.0,0.00010999,2]
[333569854,1722250277682,-577.34,0.00010999,2]
[333569855,1722250277692,-583.127648,0.00010999,2]
[333569856,1722250277702,-577.34,0.00010999,2]
[333569857,1722250277712,-569.9,0.00010999,2]
[333569858,1722250277722,-569.9,0.00010999,2]
[333569859,1722250277732,-577.34,0.00010999,2]
[333569860,1722250277741,-569.9,0.00010999,2]
[333569861,1722250277751,-577.34,0.00010999,2]
[333569862,1722250277760,-569.9,0.00010999,2]
[333569863,1722250277770,-577.34,0.00010999,2]
[333569864,1722250277779,-577.34,0.00010999,2]
[333569865,1722250277788,-577.34,0.00010999,2]
[333569866,1722250277798,-577.34,0.00010999,2]
[333569867,1722250277807,-500.0,0.00010999,2]
[333569868,1722250277816,-577.43,0.00010999,2]
[333569869,1722250277826,-452.93,0.00010999,2]
[333569870,1722250277836,-500.0,0.00010999,2]
[333569871,1722250277846,-500.0,0.00010999,2]
[333569872,1722250277859,-569.9,0.00010999,2]
[333569873,1722250277869,-500.0,0.00010999,2]
[333569874,1722250277878,-500.0,0.00010999,2]
[333569875,1722250277888,-500.0,0.00010999,2]
[333569876,1722250277898,-174.86,0.00010999,2]
[333569877,1722250277908,-569.9,0.00010999,2]
[333569878,1722250277918,-569.9,0.00010999,2]
[333569879,1722250277928,-569.9,0.00010999,2]
[333569880,1722250277940,-569.9,0.00010999,2]
[333569881,1722250277949,-151.0,0.00010999,2]
[333569882,1722250277960,-151.0,0.00010999,2]
[333569883,1722250277970,-151.0,0.00010999,2]
[333569884,1722250277979,-569.9,0.00010999,2]
[333569885,1722250277988,-570.12761437,0.00010999,2]
[333569886,1722250277998,-1990.9,0.00010999,2]
[333569887,1722250278008,-1990.9,0.00010999,2]
[333569888,1722250278018,-1990.9,0.00010999,2]
[333569889,1722250278028,-1990.9,0.00010999,2]
[333569890,1722250278038,-1990.9,0.00010999,2]
[333569891,1722250278048,-1990.9,0.00010999,2]
[333569892,1722250278058,-1990.9,0.00010999,2]
[333569893,1722250278068,-1990.9,0.00010999,2]
[333569894,1722250278078,-1990.9,0.00010999,2]
[333569895,1722250278088,-861.9,0.00010999,2]
[333569896,1722250278098,-500.0,0.00010999,2]
[333569897,1722250278108,-861.9,0.00010999,2]
[333569898,1722250278118,-500.0,0.00010999,2]
[333569899,1722250278128,-861.9,0.00010999,2]
[333569900,1722250278139,-861.9,0.00010999,2]
[333569901,1722250278148,-244.08,0.00010999,2]
[333569902,1722250278159,-861.9,0.00010999,2]
[333569903,1722250278168,-861.9,0.00010999,2]
[333569904,1722250278178,-861.9,0.00010999,2]
[333569905,1722250278188,-1990.9,0.00010999,2]
[333569906,1722250278198,-861.9,0.00010999,2]
[333569907,1722250278209,-861.9,0.00010999,2]
[333569908,1722250278219,-861.9,0.00010999,2]
[333569909,1722250278230,-1991.06995353,0.00010999,2]
[333569910,1722250278240,-862.03913853,0.00010999,2]
[333569911,1722250278251,-3131.14,0.00010999,2]
[333569912,1722250278261,-3131.14,0.00010999,2]
[333569913,1722250278271,-3131.14,0.00010999,2]
[333569914,1722250278281,-3131.14,0.00010999,2]
[333569915,1722250278291,-3131.14,0.00010999,2]
[333569916,1722250278300,-3131.14,0.00010999,2]
[333569917,1722250278310,-3131.14,0.00010999,2]
[333569918,1722250278320,-708.57,0.00010999,2]
[333569919,1722250278329,-3131.14,0.00010999,2]
[333569920,1722250278339,-3131.14,0.00010999,2]
[333569921,1722250278349,-708.57,0.00010999,2]
[333569922,1722250278358,-708.57,0.00010999,2]
[333569923,1722250278368,-708.57,0.00010999,2]
[333569924,1722250278377,-708.57,0.00010999,2]
[333569925,1722250278387,-708.57,0.00010999,2]
[333569926,1722250278397,-3131.14,0.00010999,2]
[333569927,1722250278407,-708.57,0.00010999,2]
[333569928,1722250278417,-3131.27363995,0.00010999,2]
[333569929,1722250278428,-708.57,0.00010999,2]
[333569930,1722250278438,-708.57,0.00010999,2]
[333569931,1722250278447,-708.57,0.00010999,2]
[333569932,1722250278457,-708.66693446,0.00010999,2]
[333569933,1722250278468,-628.26,0.00010999,2]
[333569934,1722250278478,-628.26,0.00010999,2]
[333569935,1722250278488,-628.26,0.00010999,2]
[333569936,1722250278498,-628.26,0.00010999,2]
[333569937,1722250278508,-151.0,0.00010999,2]
[333569938,1722250278519,-151.0,0.00010999,2]
[333569939,1722250278529,-628.26,0.00010999,2]
[333569940,1722250278539,-151.0,0.00010999,2]
[333569941,1722250278549,-500.0,0.00010999,2]
[333569942,1722250278559,-628.26,0.00010999,2]
[333569943,1722250278568,-628.26,0.00010999,2]
[333569944,1722250278578,-197.87555264,0.00010999,2]
[333569945,1722250278588,-564.06,0.00010999,2]
[333569946,1722250278598,-564.06,0.00010999,2]
[333569947,1722250278608,-628.26,0.00010999,2]
[333569948,1722250278618,-564.06,0.00010999,2]
[333569949,1722250278628,-628.26,0.00010999,2]
[333569950,1722250278638,-564.06,0.00010999,2]
[333569951,1722250278648,-628.26,0.00010999,2]
[333569952,1722250278657,-564.06,0.00010999,2]
[333569953,1722250278667,-628.49006939,0.00010999,2]
[333569954,1722250278676,-564.06,0.00010999,2]
[333569955,1722250278686,-564.06,0.00010999,2]
[333569956,1722250278695,-564.06,0.00010999,2]
[333569957,1722250278705,-564.06,0.00010999,2]
[333569958,1722250278715,-564.06,0.00010999,2]
[333569959,1722250278725,-564.13913027,0.00010999,2]
[333569960,1722250278735,-500.0,0.00010999,2]
[333569961,1722250278744,-500.0,0.00010999,2]
[333569962,1722250278754,-500.0,0.00010999,2]
[333569963,1722250278763,-500.0,0.00010999,2]
[333569964,1722250278773,-500.0,0.00010999,2]
[333569965,1722250278783,-500.0,0.00010999,2]
[333569966,1722250278793,-500.0,0.00010999,2]
[333569967,1722250278802,-500.0,0.00010999,2]
[333569968,1722250278811,-352.41550907,0.00010999,2]
[333569969,1722250278821,-1086.61,0.00010999,2]
[333569970,1722250278830,-1086.61,0.00010999,2]
[333569971,1722250278840,-1086.61,0.00010999,2]
[333569972,1722250278850,-500.0,0.00010999,2]
[333569973,1722250278863,-323.75,0.00010999,2]
[333569974,1722250278873,-151.0,0.00010999,2]
[333569975,1722250278883,-151.0,0.00010999,2]
[333569976,1722250278892,-1086.61,0.00010999,2]
[333569977,1722250278902,-151.0,0.00010999,2]
[333569978,1722250278912,-1086.61,0.00010999,2]
[333569979,1722250278922,-1086.61,0.00010999,2]
[333569980,1722250278934,-500.0,0.00010999,2]
[333569981,1722250278945,-585.7,0.00010999,2]
[333569982,1722250278955,-1086.61,0.00010999,2]
[333569983,1722250278965,-585.7,0.00010999,2]
[333569984,1722250278975,-585.7,0.00010999,2]
[333569985,1722250278985,-585.7,0.00010999,2]
[333569986,1722250278995,-585.7,0.00010999,2]
[333569987,1722250279005,-585.7,0.00010999,2]
[333569988,1722250279015,-500.0,0.00010999,2]
[333569989,1722250279025,-500.0,0.00010999,2]
[333569990,1722250279035,-585.7,0.00010999,2]
[333569991,1722250279045,-500.0,0.00010999,2]
[333569992,1722250279055,-585.7,0.00010999,2]
[333569993,1722250279065,-165.46749543,0.00010999,2]
[333569994,1722250279074,-585.7,0.00010999,2]
[333569995,1722250279084,-585.7,0.00010999,2]
[333569996,1722250279094,-1086.61,0.00010999,2]
[333569997,1722250279104,-585.83772625,0.00010999,2]
[333569998,1722250279114,-1086.61,0.00010999,2]
[333569999,1722250279123,-1086.61,0.00010999,2]
[333570000,1722250279133,-1086.7667182,0.00010999,2]
[333570001,1722250279143,-877.59,0.00010999,2]
[333570002,1722250279153,-609.72,0.00010999,2]
[333570003,1722250279163,-609.72,0.00010999,2]
[333570004,1722250279173,-609.72,0.00010999,2]
[333570005,1722250279183,-877.59,0.00010999,2]
[333570006,1722250279414,-609.72,0.00010999,2]
[333570007,1722250279425,-877.59,0.00010999,2]
[333570008,1722250279435,-877.59,0.00010999,2]
[333570009,1722250279445,-609.72,0.00010999,2]
[333570010,1722250279455,-877.59,0.00010999,2]
[333570011,1722250279465,-877.59,0.00010999,2]
[333570012,1722250279475,-609.72,0.00010999,2]
[333570013,1722250279485,-877.59,0.00010999,2]
[333570014,1722250279495,-609.72,0.00010999,2]
[333570015,1722250279505,-609.72,0.00010999,2]
[333570016,1722250279514,-877.59,0.00010999,2]
[333570017,1722250279524,-609.72,0.00010999,2]
[333570018,1722250279533,-877.59,0.00010999,2]
[333570019,1722250279543,-609.72,0.00010999,2]
[333570020,1722250279552,-877.59,0.00010999,2]
[333570021,1722250279562,-877.61,0.00010999,2]
[333570022,1722250279571,-609.79080217,0.00010999,2]
[333570023,1722250279580,-151.0,0.00010999,2]
[333570024,1722250279590,-1150.01,0.00010999,2]
[333570025,1722250279599,-151.0,0.00010999,2]
[333570026,1722250279608,-500.0,0.00010999,2]
[333570027,1722250279618,-1150.01,0.00010999,2]
[333570028,1722250279628,-151.0,0.00010999,2]
[333570029,1722250279637,-245.07,0.00010999,2]
[333570030,1722250279647,-1150.01,0.00010999,2]
[333570031,1722250279657,-578.8,0.00010999,2]
[333570032,1722250279667,-1150.01,0.00010999,2]
[333570033,1722250279676,-578.8,0.00010999,2]
[333570034,1722250279686,-1150.01,0.00010999,2]
[333570035,1722250279696,-578.8,0.00010999,2]
[333570036,1722250279707,-578.8,0.00010999,2]
[333570037,1722250279716,-578.8,0.00010999,2]
[333570038,1722250279728,-578.8,0.00010999,2]
[333570039,1722250279738,-578.8,0.00010999,2]
[333570040,1722250279747,-1150.01,0.00010999,2]
[333570041,1722250279757,-578.8,0.00010999,2]
[333570042,1722250279767,-1150.01,0.00010999,2]
[333570043,1722250279776,-578.8,0.00010999,2]
[333570044,1722250279786,-1150.01,0.00010999,2]
[333570045,1722250279796,-1150.01,0.00010999,2]
[333570046,1722250279805,-1150.01,0.00010999,2]
[333570047,1722250279814,-1150.01,0.00010999,2]
[333570048,1722250279824,-1150.02046516,0.00010999,2]
[333570049,1722250279833,-450.372776,0.00010999,2]
[333570050,1722250279842,-450.372776,0.00010999,2]
[333570051,1722250279851,-450.372776,0.00010999,2]
[333570052,1722250279864,-578.8,0.00010999,2]
[333570053,1722250279873,-578.88,0.00010999,2]
[333570054,1722250279882,-556.96,0.00010999,2]
[333570055,1722250279892,-556.96,0.00010999,2]
[333570056,1722250279902,-556.96,0.00010999,2]
[333570057,1722250279911,-556.96,0.00010999,2]
[333570058,1722250279921,-556.96,0.00010999,2]
[333570059,1722250279931,-556.96,0.00010999,2]
[333570060,1722250279941,-556.96,0.00010999,2]
[333570061,1722250279951,-500.0,0.00010999,2]
[333570062,1722250279962,-556.96,0.00010999,2]
[333570063,1722250279972,-500.0,0.00010999,2]
[333570064,1722250279981,-556.96,0.00010999,2]
[333570065,1722250279991,-450.372776,0.00010999,2]
[333570066,1722250280001,-500.0,0.00010999,2]
[333570067,1722250280011,-556.96,0.00010999,2]
[333570068,1722250280020,-557.02853692,0.00010999,2]
[333570069,1722250280030,-500.0,0.00010999,2]
[333570070,1722250280039,-500.0,0.00010999,2]
[333570071,1722250280049,-450.372776,0.00010999,2]
[333570072,1722250280058,-500.0,0.00010999,2]
[333570073,1722250280068,-450.372776,0.00010999,2]
[333570074,1722250280077,-500.0,0.00010999,2]
[333570075,1722250280087,-500.0,0.00010999,2]
[333570076,1722250280096,-174.58974582,0.00010999,2]
[333570077,1722250280106,-356.714867,0.00010999,2]
[333570078,1722250280115,-356.714867,0.00010999,2]
[333570079,1722250280125,-356.714867,0.00010999,2]
[333570080,1722250280134,-557.2,0.00010999,2]
[333570081,1722250280144,-557.2,0.00010999,2]
[333570082,1722250280153,-557.2,0.00010999,2]
[333570083,1722250280163,-557.2,0.00010999,2]
[333570084,1722250280172,-557.2,0.00010999,2]
[333570085,1722250280181,-557.2,0.00010999,2]
[333570086,1722250280190,-557.2,0.00010999,2]
[333570087,1722250280199,-356.714867,0.00010999,2]
[333570088,1722250280212,-557.2,0.00010999,2]
[333570089,1722250280221,-356.714867,0.00010999,2]
[333570090,1722250280230,-557.2,0.00010999,2]
[333570091,1722250280240,-356.714867,0.00010999,2]
[333570092,1722250280249,-557.2,0.00010999,2]
[333570093,1722250280259,-557.2,0.00010999,2]
[333570094,1722250280268,-500.0,0.00010999,2]
[333570095,1722250280278,-500.0,0.00010999,2]
[333570096,1722250280287,-343.51520265,0.00010999,2]
[333570097,1722250280296,-500.0,0.00010999,2]
[333570098,1722250280305,-1724.87,0.00010999,2]
[333570099,1722250280315,-1724.87,0.00010999,2]
[333570100,1722250280324,-1724.87,0.00010999,2]
[333570101,1722250280334,-1724.87,0.00010999,2]
[333570102,1722250280343,-1724.87,0.00010999,2]
[333570103,1722250280353,-1724.87,0.00010999,2]
[333570104,1722250280363,-1724.87,0.00010999,2]
[333570105,1722250280372,-1724.87,0.00010999,2]
[333570106,1722250280382,-1724.87,0.00010999,2]
[333570107,1722250280391,-1724.87,0.00010999,2]
[333570108,1722250280400,-1724.87,0.00010999,2]
[333570109,1722250280410,-1254.8,0.00010999,2]
[333570110,1722250280420,-1725.02501198,0.00010999,2]
[333570111,1722250280429,-1254.8,0.00010999,2]
[333570112,1722250280439,-1254.8,0.00010999,2]
[333570113,1722250280449,-1254.8,0.00010999,2]
[333570114,1722250280464,-597.67,0.00010999,2]
[333570115,1722250280474,-500.0,0.00010999,2]
[333570116,1722250280487,-1254.8,0.00010999,2]
[333570117,1722250280496,-597.67,0.00010999,2]
[333570118,1722250280506,-597.67,0.00010999,2]
[333570119,1722250280515,-597.67,0.00010999,2]
[333570120,1722250280525,-597.67,0.00010999,2]
[333570121,1722250280535,-597.67,0.00010999,2]
[333570122,1722250280544,-597.67,0.00010999,2]
[333570123,1722250280554,-597.67,0.00010999,2]
[333570124,1722250280563,-597.67,0.00010999,2]
[333570125,1722250280573,-1254.8,0.00010999,2]
[333570126,1722250280582,-1254.8,0.00010999,2]
[333570127,1722250280592,-1254.8,0.00010999,2]
[333570128,1722250280602,-1254.8,0.00010999,2]
[333570129,1722250280612,-1254.8,0.00010999,2]
[333570130,1722250280621,-500.0,0.00010999,2]
[333570131,1722250280631,-1254.8993,0.00010999,2]
[333570132,1722250280641,-597.67,0.00010999,2]
[333570133,1722250280650,-597.67,0.00010999,2]
[333570134,1722250280660,-597.71,0.00010999,2]
[333570135,1722250280669,-500.0,0.00010999,2]
[333570136,1722250280679,-500.0,0.00010999,2]
[333570137,1722250280688,-151.0,0.00010999,2]
[333570138,1722250280698,-151.0,0.00010999,2]
[333570139,1722250280708,-500.0,0.00010999,2]
[333570140,1722250280718,-151.0,0.00010999,2]
[333570141,1722250280727,-483.259999,0.00010999,2]
[333570142,1722250280736,-500.0,0.00010999,2]
[333570143,1722250280746,-500.0,0.00010999,2]
[333570144,1722250280755,-500.0,0.00010999,2]
[333570145,1722250280765,-926.32,0.00010999,2]
[333570146,1722250280774,-926.32,0.00010999,2]
[333570147,1722250280784,-500.0,0.00010999,2]
[333570148,1722250280793,-926.32,0.00010999,2]
[333570149,1722250280802,-500.0,0.00010999,2]
[333570150,1722250280811,-500.0,0.00010999,2]
[333570151,1722250280821,-151.0,0.00010999,2]
[333570152,1722250280830,-500.0,0.00010999,2]
[333570153,1722250280840,-151.0,0.00010999,2]
[333570154,1722250280849,-500.0,0.00010999,2]
[333570155,1722250280863,-151.0,0.00010999,2]
[333570156,1722250280872,-500.0,0.00010999,2]
[333570157,1722250280881,-500.0,0.00010999,2]
[333570158,1722250280890,-926.32,0.00010999,2]
[333570159,1722250280900,-500.0,0.00010999,2]
[333570160,1722250280909,-926.32,0.00010999,2]
[333570161,1722250280918,-500.0,0.00010999,2]
[333570162,1722250280928,-926.32,0.00010999,2]
[333570163,1722250280939,-583.0890993,0.00010999,2]
[333570164,1722250280948,-500.0,0.00010999,2]
[333570165,1722250280958,-926.32,0.00010999,2]
[333570166,1722250280967,-500.0,0.00010999,2]
[333570167,1722250280976,-500.0,0.00010999,2]
[333570168,1722250280986,-926.32,0.00010999,2]
[333570169,1722250280995,-500.0,0.00010999,2]
[333570170,1722250281004,-500.0,0.00010999,2]
[333570171,1722250281014,-926.32,0.00010999,2]
[333570172,1722250281023,-500.0,0.00010999,2]
[333570173,1722250281032,-500.0,0.00010999,2]
[333570174,1722250281042,-500.0,0.00010999,2]
[333570175,1722250281051,-926.32,0.00010999,2]
[333570176,1722250281061,-163.51,0.00010999,2]
[333570177,1722250281070,-500.0,0.00010999,2]
[333570178,1722250281080,-500.0,0.00010999,2]
[333570179,1722250281089,-926.54586509,0.00010999,2]
[333570180,1722250281098,-500.0,0.00010999,2]
[333570181,1722250281108,-500.0,0.00010999,2]
[333570182,1722250281117,-500.0,0.00010999,2]
[333570183,1722250281127,-500.0,0.00010999,2]
[333570184,1722250281136,-500.0,0.00010999,2]
[333570185,1722250281145,-500.0,0.00010999,2]
[333570186,1722250281154,-187.33,0.00010999,2]
[333570187,1722250281163,-500.0,0.00010999,2]
[333570188,1722250281172,-636.57861166,0.00010999,2]
[333570189,1722250281181,-500.0,0.00010999,2]
[333570190,1722250281191,-500.0,0.00010999,2]
[333570191,1722250281199,-500.0,0.00010999,2]
[333570192,1722250281210,-500.0,0.00010999,2]
[333570193,1722250281220,-500.0,0.00010999,2]
[333570194,1722250281230,-500.0,0.00010999,2]
[333570195,1722250281239,-500.0,0.00010999,2]
[333570196,1722250281248,-156.76092247,0.00010999,2]
[333570197,1722250281258,-500.0,0.00010999,2]
[333570198,1722250281268,-3505.24,0.00010999,2]
[333570199,1722250281277,-3505.24,0.00010999,2]
[333570200,1722250281286,-3505.24,0.00010999,2]
[333570201,1722250281296,-3505.24,0.00010999,2]
[333570202,1722250281305,-3505.24,0.00010999,2]
[333570203,1722250281314,-3505.24,0.00010999,2]
[333570204,1722250281323,-3505.24,0.00010999,2]
[333570205,1722250281333,-3505.24,0.00010999,2]
[333570206,1722250281342,-3505.24,0.00010999,2]
[333570207,1722250281351,-3505.24,0.00010999,2]
[333570208,1722250281361,-3505.3034314,0.00010999,2]
[333570209,1722250281370,-500.0,0.00010999,2]
[333570210,1722250281379,-500.0,0.00010999,2]
[333570211,1722250281388,-500.0,0.00010999,2]
[333570212,1722250281397,-500.0,0.00010999,2]
[333570213,1722250281406,-500.0,0.00010999,2]
[333570214,1722250281415,-497.10918493,0.00010999,2]
[333570215,1722250281425,-352638.38548357,0.00011,2]
[333570216,1722250281435,-1000.0,0.00011,2]
[333570217,1722250281444,-1000.0,0.00011,3]
[333570218,1722250281454,-18746.13468377,0.00011,3]
[333570219,1722250281467,-158734.15972172,0.00011,2]
[333570220,1722250281476,-220669.07092508,0.00011,2]
[333570221,1722250281487,-405.8,0.00011,2]
[333570222,1722250281496,-18602.1389976,0.00011,2]
[333570223,1722250281505,-165161.52418222,0.00011,2]
[333570224,1722250282126,-511.77,0.00010997,2]
[333570225,1722250282136,-500.0,0.00010998,2]
[333570226,1722250282144,-109.4513578,0.00010998,2]
[333570227,1722250282156,-390.5486422,0.00010998,2]
[333570228,1722250282165,-88.20399126,0.00010998,2]
[333570229,1722250282176,-184.84601254,0.00010998,2]
[333570230,1722250282185,-511.77,0.00010998,2]
[333570231,1722250282193,-151.0,0.00010999,2]
[333570232,1722250282202,-197.17898746,0.00010999,2]
[333570233,1722250282216,-302.82101254,0.00010999,2]
[333570234,1722250282225,-138.14762746,0.00010999,2]
[333570235,1722250282261,-500.57827625,0.00010998,2]
[333570236,1722250282272,-11.19172375,0.00010998,2]
[333570237,1722250282283,-12.85237254,0.00010999,2]
[333570238,1722250282292,-500.0,0.00010999,2]
[333570239,1722250282301,-151.0,0.00010999,2]
[333570240,1722250282310,-500.0,0.00010999,2]
[333570241,1722250282319,-500.0,0.00010999,2]
[333570242,1722250282328,-500.0,0.00010999,2]
[333570243,1722250282337,-583.69759183,0.00010999,2]
[333570244,1722250282346,-48267.51541139,0.00011,2]
[333570245,1722250282357,-85761.69310497,0.00011,2]
[333570246,1722250282370,-7694.34797999,0.00011,2]
[333570247,1722250282389,-5156.31757338,0.00011,2]
[333570248,1722250282846,-150.0,0.00010192,2]
[333570249,1722250282856,-6825.25,0.0001099,2]
[333570250,1722250282870,-4788.38967729,0.0001099,2]
[333570251,1722250282880,-6339.61331955,0.0001099,2]
[333570252,1722250282891,-965.49685388,0.0001099,2]
[333570253,1722250282902,-2089.86470127,0.0001099,2]
[333570254,1722250282913,-2479.97084612,0.0001099,2]
[333570255,1722250282924,-1591.53795822,0.0001099,2]
[333570256,1722250282935,-24919.87664367,0.0001099,2]
[333570257,1722250282945,-151.0,0.00010997,2]
[333570258,1722250282954,-511.77,0.00010998,2]
[333570259,1722250282965,-511.77,0.00010998,2]
[333570260,1722250282974,-151.0,0.00010998,2]
[333570261,1722250282986,-151.0,0.00010998,2]
[333570262,1722250282995,-511.77,0.00010999,2]
[333570263,1722250283004,-511.77,0.00010999,2]
[333570264,1722250283013,-511.77,0.00010999,2]
[333570265,1722250283022,-511.77,0.00010999,2]
[333570266,1722250283032,-151.0,0.00010999,2]
[333570267,1722250283042,-151.0,0.00010999,2]
[333570268,1722250283051,-208.51483,0.00010999,2]
[333570269,1722250283060,-188847.90909758,0.00011,2]
[333570270,1722250283082,-1757.99426359,0.00011,2]
[333570271,1722250283092,-531.0,0.00011,2]
[333570272,1722250283103,-1636.31814337,0.00011,2]
[333570273,1722250283114,-295.25514135,0.00011,2]
[333570274,1722250283125,-544.23808247,0.00011,2]
[333570275,1722250283136,-6324.81784563,0.00011,2]
[333570276,1722250283147,-2306.87815915,0.00011,2]
[333570277,1722250283157,-1033.05017563,0.00011,2]
[333570278,1722250283184,-1293.7277763,0.00011,2]
[333570279,1722250283195,-379.71008372,0.00011,2]
[333570280,1722250283207,-794.89183922,0.00011,2]
[333570281,1722250283219,-828.30230709,0.00011,2]
[333570282,1722250283229,-769.05650803,0.00011,2]
[333570283,1722250283240,-625.97799995,0.00011,2]
[333570284,1722250283251,-1458.83968283,0.00011,2]
[333570285,1722250283262,-409.14193754,0.00011,2]
[333570286,1722250283272,-4666.27831828,0.00011,2]
[333570287,1722250283288,-449479.72041316,0.00011,2]
[333570288,1722250283299,-14786.42778422,0.00011,2]
[333570289,1722250283310,-432.5,0.00011,2]
[333570290,1722250283321,-6649.48547676,0.00011,2]
[333570291,1722250283331,-736.8084,0.00011,2]
[333570292,1722250283342,-3821.0,0.00011,2]
[333570293,1722250283353,-677.99999947,0.00011,2]
[333570294,1722250283363,-3404.82359271,0.00011,2]
[333570295,1722250283374,-965.82936208,0.00011,2]
[333570296,1722250283388,-383.87296915,0.00011,2]
[333570297,1722250283399,-544.68072996,0.00011,2]
[333570298,1722250283410,-295.12565298,0.00011,2]
[333570299,1722250283421,-501.50580398,0.00011,2]
[333570301,1722250610252,-200000.0,0.0002,90]
[333570331,1722251432241,-349.63,8.219e-05,2]
[333570332,1722251432251,-283.0,9.656e-05,2]
[333570333,1722251432260,-99.53651249,9.656e-05,2]
[333570334,1722251432271,-753.42941612,9.656e-05,2]
[333570335,1722251432280,-394.99,9.657e-05,2]
[333570336,1722251432289,-558.42,9.673e-05,2]
[333570337,1722251432298,-906.65230477,9.679e-05,2]
[333570338,1722251432309,-854.16488114,9.679e-05,2]
[333570339,1722251432320,-464.47486671,9.679e-05,2]
[333570340,1722251432331,-1132.38722525,9.679e-05,2]
[333570341,1722251432342,-591.41965906,9.679e-05,2]
[333570343,1722251432623,-497.48514,9.679e-05,2]
[333570345,1722251432635,-835.76890851,9.679e-05,2]
[333570347,1722251432646,-4714.78701456,9.679e-05,2]
[333570349,1722251432655,-23890.0,9.736e-05,2]
[333570351,1722251432664,-160.0,9.848e-05,2]
[333570352,1722251432673,-200.0,9.95e-05,2]
[333570353,1722251432682,-172.47,9.954e-05,2]
[333570354,1722251432692,-150.99,9.954e-05,2]
[333570355,1722251432701,-1994.74,9.954e-05,2]
[333570356,1722251432711,-4993.82,9.954e-05,2]
[333570357,1722251432720,-150.0,9.958e-05,2]
[333570358,1722251432729,-904.0,9.959e-05,2]
[333570359,1722251432739,-150.99,9.959e-05,2]
[333570360,1722251432748,-855.89068399,0.0001,2]
[333570361,1722251432757,-1243.5,0.0001,2]
[333570362,1722251432767,-254.33,0.0001,2]
[333570363,1722251432776,-1250.0,0.0001,2]